fUST/lending_fUST_20240830
["ID","MTS","AMOUNT","RATE_DAILY","PERIOD"]
[336590770,1724959876325,-246.841308,0.00022739,7]
[336590771,1724959876335,-246.841308,0.00022739,7]
[336590772,1724959876344,-572.09,0.00022739,5]
[336590773,1724959876354,-507.64,0.00022739,5]
[336590774,1724959876363,-986.6,0.00022739,5]
[336590775,1724959876372,-668.17,0.00022739,5]
[336590776,1724959876381,-1355.56,0.00022739,5]
[336590777,1724959876391,-776.41,0.00022739,5]
[336590778,1724959876400,-500.0,0.00022739,5]
[336590779,1724959876410,-829.52,0.00022739,5]
[336590780,1724959876421,-579.36,0.00022739,5]
[336590781,1724959876432,-605.81,0.00022739,5]
[336590782,1724959876441,-836.77,0.00022739,5]
[336590783,1724959876451,-584.54,0.00022739,5]
[336590784,1724959876461,-500.7,0.00022739,5]
[336590785,1724959876470,-486.31553258,0.00022739,5]
[336590786,1724959876479,-1704.24,0.00022739,5]
[336590787,1724959876488,-500.0,0.00022739,5]
[336590788,1724959876570,-1674.51,0.00022739,5]
[336590789,1724959876580,-151.0,0.00022739,7]
[336590790,1724959876590,-151.0,0.00022739,7]
[336590791,1724959876600,-2011.91,0.00022739,5]
[336590792,1724959876610,-1578.86,0.00022739,5]
[336590793,1724959876620,-1943.11,0.00022739,5]
[336590794,1724959876629,-500.0,0.00022739,5]
[336590795,1724959876639,-500.0,0.00022739,5]
[336590796,1724959876649,-3148.43,0.00022739,5]
[336590797,1724959876660,-1722.01,0.00022739,5]
[336590798,1724959876670,-2200.88,0.00022739,5]
[336590799,1724959876680,-10005.23,0.00022739,5]
[336590800,1724959876689,-1758.17,0.00022739,5]
[336590801,1724959876699,-500.0,0.00022739,5]
[336590802,1724959876708,-4039.87,0.00022739,5]
[336590803,1724959876718,-2874.84,0.00022739,5]
[336590804,1724959876727,-6955.28,0.00022739,5]
[336590805,1724959876737,-8645.87,0.00022739,5]
[336590806,1724959876747,-7860.36,0.00022739,5]
[336590807,1724959876756,-3052.09,0.00022739,5]
[336590808,1724959876766,-526.41,0.00022739,5]
[336590809,1724959876775,-1992.41,0.00022739,5]
[336590810,1724959876786,-1568.45,0.00022739,5]
[336590811,1724959876795,-2047.97,0.00022739,5]
[336590812,1724959876805,-1778.974224,0.00022739,7]
[336590813,1724959876815,-1562.05,0.00022739,5]
[336590814,1724959876824,-500.0,0.00022739,5]
[336590815,1724959876834,-1778.974224,0.00022739,7]
[336590816,1724959876844,-500.0,0.00022739,5]
[336590817,1724959876854,-283.389656,0.00022739,7]
[336590818,1724959876863,-2122.12,0.00022739,5]
[336590819,1724959876873,-864.74,0.00022739,5]
[336590820,1724959876883,-10000.0,0.00022739,7]
[336590821,1724959876893,-283.389666,0.00022739,7]
[336590822,1724959876902,-727.36,0.00022739,5]
[336590823,1724959876912,-500.0,0.00022739,5]
[336590824,1724959876922,-3582.04,0.00022739,5]
[336590825,1724959876932,-10000.0,0.00022739,7]
[336590826,1724959876942,-10000.0,0.00022739,7]
[336590827,1724959876952,-1462.75,0.00022739,5]
[336590828,1724959876962,-7676.07,0.00022739,5]
[336590829,1724959876972,-500.0,0.00022739,5]
[336590830,1724959876982,-500.0,0.00022739,5]
[336590831,1724959876992,-535.44,0.00022739,5]
[336590832,1724959877002,-636.36,0.00022739,5]
[336590833,1724959877012,-178.67858829,0.00022739,5]
[336590834,1724959877022,-1215.51,0.00022739,5]
[336590835,1724959877032,-500.0,0.00022739,5]
[336590836,1724959877043,-500.0,0.00022739,5]
[336590837,1724959877053,-1345.15,0.00022739,5]
[336590838,1724959877067,-2499.8,0.00022739,5]
[336590839,1724959877076,-1920.4,0.00022739,5]
[336590840,1724959877086,-2341.41,0.00022739,5]
[336590841,1724959877096,-500.0,0.00022739,5]
[336590842,1724959877106,-2245.67,0.00022739,5]
[336590843,1724959877116,-3653.88,0.00022739,5]
[336590844,1724959877126,-233.64773225,0.00022739,5]
[336590845,1724959877136,-1513.12,0.00022739,5]
[336590846,1724959877145,-7125.4,0.00022739,5]
[336590847,1724959877155,-687.9,0.00022739,5]
[336590848,1724959877164,-500.0,0.00022739,5]
[336590849,1724959877175,-2432.83,0.00022739,5]
[336590850,1724959877184,-600.7710281,0.00022739,5]
[336590851,1724959877198,-1735.37,0.00022739,5]
[336590852,1724959877208,-500.0,0.00022739,5]
[336590853,1724959877218,-500.0,0.00022739,5]
[336590854,1724959877228,-1823.65,0.00022739,5]
[336590855,1724959877239,-1860.24,0.00022739,5]
[336590856,1724959877249,-1687.53,0.00022739,5]
[336590857,1724959877260,-500.0,0.00022739,5]
[336590858,1724959877270,-640.19,0.00022739,5]
[336590859,1724959877281,-692.81,0.00022739,5]
[336590860,1724959877292,-7069.08,0.00022739,5]
[336590861,1724959877302,-500.0,0.00022739,5]
[336590862,1724959877311,-2819.92,0.00022739,5]
[336590863,1724959877321,-7852.79,0.00022739,5]
[336590864,1724959877331,-1778.75,0.00022739,5]
[336590865,1724959877341,-5307.89,0.00022739,5]
[336590866,1724959877351,-563.92,0.00022739,5]
[336590867,1724959877360,-563.48,0.00022739,5]
[336590868,1724959877371,-4411.53,0.00022739,5]
[336590869,1724959877381,-500.0,0.00022739,5]
[336590870,1724959877391,-810.09,0.00022739,5]
[336590871,1724959877400,-153.0,0.00022932,2]
[336590872,1724959877410,-298.8415668,0.00022932,2]
[336590873,1724959877420,-306.0000001,0.00022959,2]
[336590874,1724959877430,-2000.0,0.00023,5]
[336590875,1724959877439,-1500.48821306,0.00023,3]
[336590876,1724959877449,-311.0,0.00023,2]
[336590877,1724959877458,-258.0,0.00023,2]
[336590878,1724959877468,-500.0,0.00023002,2]
[336590879,1724959877478,-500.0,0.00023013,5]
[336590880,1724959877488,-150.76,0.00023013,5]
[336590881,1724959877498,-500.0,0.00023013,5]
[336590882,1724959877509,-972.15,0.00023013,5]
[336590883,1724959877518,-500.0,0.00023013,5]
[336590884,1724959877532,-568.31,0.00023013,5]
[336590885,1724959877544,-500.0,0.00023013,5]
[336590886,1724959877554,-886.8,0.00023013,5]
[336590887,1724959877563,-500.0,0.00023013,5]
[336590888,1724959877573,-591.56,0.00023013,5]
[336590889,1724959877583,-500.0,0.00023013,5]
[336590890,1724959877592,-572.09,0.00023013,5]
[336590891,1724959877602,-507.64,0.00023013,5]
[336590892,1724959877610,-986.6,0.00023013,5]
[336590893,1724959877620,-668.17,0.00023013,5]
[336590894,1724959877630,-1355.56,0.00023013,5]
[336590895,1724959877640,-776.41,0.00023013,5]
[336590896,1724959877651,-500.0,0.00023013,5]
[336590897,1724959877661,-829.52,0.00023013,5]
[336590898,1724959877671,-579.36,0.00023013,5]
[336590899,1724959877681,-605.81,0.00023013,5]
[336590900,1724959877691,-836.77,0.00023013,5]
[336590901,1724959877700,-584.54,0.00023013,5]
[336590902,1724959877710,-500.7,0.00023013,5]
[336590903,1724959877719,-231.491231,0.00023013,7]
[336590904,1724959877729,-231.491231,0.00023013,7]
[336590905,1724959877739,-151.0,0.00023013,7]
[336590906,1724959877749,-1704.24,0.00023013,5]
[336590907,1724959877759,-263.65831767,0.00023013,5]
[336590908,1724959877768,-1674.51,0.00023013,5]
[336590909,1724959877778,-2011.91,0.00023013,5]
[336590910,1724959877788,-1578.86,0.00023013,5]
[336590911,1724959877797,-1943.11,0.00023013,5]
[336590912,1724959877807,-438.67835019,0.00023013,5]
[336590913,1724959877817,-500.0,0.00023013,5]
[336590914,1724959877827,-3148.43,0.00023013,5]
[336590915,1724959877837,-1722.01,0.00023013,5]
[336590916,1724959877846,-2200.88,0.00023013,5]
[336590917,1724959877856,-10005.23,0.00023013,5]
[336590918,1724959877866,-1758.17,0.00023013,5]
[336590919,1724959877876,-500.0,0.00023013,5]
[336590920,1724959877886,-4039.87,0.00023013,5]
[336590921,1724959877896,-2874.84,0.00023013,5]
[336590922,1724959877906,-6955.28,0.00023013,5]
[336590923,1724959877981,-8645.87,0.00023013,5]
[336590924,1724959877997,-7860.36,0.00023013,5]
[336590925,1724959878006,-3052.09,0.00023013,5]
[336590926,1724959878016,-526.41,0.00023013,5]
[336590927,1724959878025,-1992.41,0.00023013,5]
[336590928,1724959878035,-1568.45,0.00023013,5]
[336590929,1724959878046,-2047.97,0.00023013,5]
[336590930,1724959878055,-1562.05,0.00023013,5]
[336590931,1724959878065,-500.0,0.00023013,5]
[336590932,1724959878075,-500.0,0.00023013,5]
[336590933,1724959878084,-2122.12,0.00023013,5]
[336590934,1724959878093,-864.74,0.00023013,5]
[336590935,1724959878103,-727.36,0.00023013,5]
[336590936,1724959878113,-500.0,0.00023013,5]
[336590937,1724959878123,-3582.04,0.00023013,5]
[336590938,1724959878133,-1462.75,0.00023013,5]
[336590939,1724959878144,-7676.07,0.00023013,5]
[336590940,1724959878155,-500.0,0.00023013,5]
[336590941,1724959878166,-600.84,0.00023013,5]
[336590942,1724959878176,-535.44,0.00023013,5]
[336590943,1724959878187,-636.36,0.00023013,5]
[336590944,1724959878200,-1215.51,0.00023013,5]
[336590945,1724959878210,-500.0,0.00023013,5]
[336590946,1724959878221,-500.0,0.00023013,5]
[336590947,1724959878233,-1345.15,0.00023013,5]
[336590948,1724959878243,-2499.8,0.00023013,5]
[336590949,1724959878253,-1920.4,0.00023013,5]
[336590950,1724959878263,-2341.41,0.00023013,5]
[336590951,1724959878275,-500.0,0.00023013,5]
[336590952,1724959878286,-2245.67,0.00023013,5]
[336590953,1724959878301,-3653.88,0.00023013,5]
[336590954,1724959878312,-1513.12,0.00023013,5]
[336590955,1724959878322,-7125.4,0.00023013,5]
[336590956,1724959878331,-687.9,0.00023013,5]
[336590957,1724959878342,-500.0,0.00023013,5]
[336590958,1724959878352,-2432.83,0.00023013,5]
[336590959,1724959878363,-1735.37,0.00023013,5]
[336590960,1724959878372,-500.0,0.00023013,5]
[336590961,1724959878383,-500.0,0.00023013,5]
[336590962,1724959878393,-1823.65,0.00023013,5]
[336590963,1724959878402,-1860.24,0.00023013,5]
[336590964,1724959878412,-1687.53,0.00023013,5]
[336590965,1724959878422,-594.99494672,0.00023013,5]
[336590966,1724959878432,-640.19,0.00023013,5]
[336590967,1724959878442,-692.81,0.00023013,5]
[336590968,1724959878451,-7069.08,0.00023013,5]
[336590969,1724959878461,-500.0,0.00023013,5]
[336590970,1724959878471,-2819.92,0.00023013,5]
[336590971,1724959878482,-7852.79,0.00023013,5]
[336590972,1724959878493,-1778.75,0.00023013,5]
[336590973,1724959878503,-5307.89,0.00023013,5]
[336590974,1724959878513,-563.92,0.00023013,5]
[336590975,1724959878523,-563.48,0.00023013,5]
[336590976,1724959878533,-4411.53,0.00023013,5]
[336590977,1724959878550,-810.09,0.00023013,5]
[336590978,1724959878559,-465.01091084,0.00023036,2]
[336590979,1724959878569,-1225.70301375,0.00023076,2]
[336590980,1724959878578,-150.0,0.00023215,2]
[336590981,1724959878587,-522.0,0.00023232,2]
[336590982,1724959878597,-150.0,0.00023232,2]
[336590983,1724959878607,-500.0,0.00023287,5]
[336590984,1724959878616,-288.99441367,0.00023287,5]
[336590985,1724959878625,-972.15,0.00023287,5]
[336590986,1724959878635,-500.0,0.00023287,5]
[336590987,1724959878645,-568.31,0.00023287,5]
[336590988,1724959878654,-500.0,0.00023287,5]
[336590989,1724959878664,-886.8,0.00023287,5]
[336590990,1724959878674,-500.0,0.00023287,5]
[336590991,1724959878683,-591.56,0.00023287,5]
[336590992,1724959878693,-500.0,0.00023287,5]
[336590993,1724959878703,-572.09,0.00023287,5]
[336590994,1724959878712,-507.64,0.00023287,5]
[336590995,1724959878722,-986.6,0.00023287,5]
[336590996,1724959878732,-668.17,0.00023287,5]
[336590997,1724959878741,-1355.56,0.00023287,5]
[336590998,1724959878751,-776.41,0.00023287,5]
[336590999,1724959878761,-500.0,0.00023287,5]
[336591000,1724959878771,-829.52,0.00023287,5]
[336591001,1724959878782,-579.36,0.00023287,5]
[336591002,1724959878797,-605.81,0.00023287,5]
[336591003,1724959878807,-836.77,0.00023287,5]
[336591004,1724959878816,-584.54,0.00023287,5]
[336591005,1724959878826,-500.7,0.00023287,5]
[336591006,1724959878836,-1704.24,0.00023287,5]
[336591007,1724959878845,-1674.51,0.00023287,5]
[336591008,1724959878856,-151.0,0.00023287,7]
[336591009,1724959878865,-151.0,0.00023287,7]
[336591010,1724959878875,-2011.91,0.00023287,5]
[336591011,1724959878885,-5672.749772,0.00023287,7]
[336591012,1724959878894,-1578.86,0.00023287,5]
[336591013,1724959878904,-5672.749772,0.00023287,7]
[336591014,1724959878914,-5094.968618,0.00023287,7]
[336591015,1724959878924,-5094.968618,0.00023287,7]
[336591016,1724959878934,-1943.11,0.00023287,5]
[336591017,1724959878944,-500.0,0.00023287,5]
[336591018,1724959878956,-3148.43,0.00023287,5]
[336591019,1724959878965,-5511.193121,0.00023287,7]
[336591020,1724959878975,-5511.193121,0.00023287,7]
[336591021,1724959878985,-1722.01,0.00023287,5]
[336591022,1724959878995,-2200.88,0.00023287,5]
[336591023,1724959879005,-10005.23,0.00023287,5]
[336591024,1724959879015,-1758.17,0.00023287,5]
[336591025,1724959879026,-500.0,0.00023287,5]
[336591026,1724959879035,-4039.87,0.00023287,5]
[336591027,1724959879047,-2874.84,0.00023287,5]
[336591028,1724959879056,-6955.28,0.00023287,5]
[336591029,1724959879067,-8645.87,0.00023287,5]
[336591030,1724959879076,-7860.36,0.00023287,5]
[336591031,1724959879086,-273.471213,0.00023287,7]
[336591032,1724959879096,-3052.09,0.00023287,5]
[336591033,1724959879107,-526.41,0.00023287,5]
[336591034,1724959879117,-273.471213,0.00023287,7]
[336591035,1724959879128,-1992.41,0.00023287,5]
[336591036,1724959879138,-2516.329952,0.00023287,7]
[336591037,1724959879149,-1568.45,0.00023287,5]
[336591038,1724959879158,-1778.974224,0.00023287,7]
[336591039,1724959879168,-2047.97,0.00023287,5]
[336591040,1724959879178,-2516.329952,0.00023287,7]
[336591041,1724959879193,-1562.05,0.00023287,5]
[336591042,1724959879203,-500.0,0.00023287,5]
[336591043,1724959879215,-1778.974224,0.00023287,7]
[336591044,1724959879225,-500.0,0.00023287,5]
[336591045,1724959879237,-2122.12,0.00023287,5]
[336591046,1724959879246,-864.74,0.00023287,5]
[336591047,1724959879259,-727.36,0.00023287,5]
[336591048,1724959879337,-500.0,0.00023287,5]
[336591049,1724959879347,-3582.04,0.00023287,5]
[336591050,1724959879357,-1462.75,0.00023287,5]
[336591051,1724959879367,-7676.07,0.00023287,5]
[336591052,1724959879376,-151.0,0.00023287,7]
[336591053,1724959879386,-500.0,0.00023287,5]
[336591054,1724959879395,-535.44,0.00023287,5]
[336591055,1724959879405,-636.36,0.00023287,5]
[336591056,1724959879416,-1215.51,0.00023287,5]
[336591057,1724959879426,-500.0,0.00023287,5]
[336591058,1724959879435,-500.0,0.00023287,5]
[336591059,1724959879445,-1345.15,0.00023287,5]
[336591060,1724959879455,-2499.8,0.00023287,5]
[336591061,1724959879465,-1920.4,0.00023287,5]
[336591062,1724959879474,-2341.41,0.00023287,5]
[336591063,1724959879485,-566.72958272,0.00023287,5]
[336591064,1724959879494,-2245.67,0.00023287,5]
[336591065,1724959879505,-3653.88,0.00023287,5]
[336591066,1724959879515,-1513.12,0.00023287,5]
[336591067,1724959879524,-7125.4,0.00023287,5]
[336591068,1724959879534,-687.9,0.00023287,5]
[336591069,1724959879546,-500.0,0.00023287,5]
[336591070,1724959879556,-2432.83,0.00023287,5]
[336591071,1724959879566,-1735.37,0.00023287,5]
[336591072,1724959879577,-500.0,0.00023287,5]
[336591073,1724959879588,-500.0,0.00023287,5]
[336591074,1724959879599,-1823.65,0.00023287,5]
[336591075,1724959879610,-1860.24,0.00023287,5]
[336591076,1724959879620,-1687.53,0.00023287,5]
[336591077,1724959879629,-640.19,0.00023287,5]
[336591078,1724959879640,-692.81,0.00023287,5]
[336591079,1724959879650,-7069.08,0.00023287,5]
[336591080,1724959879660,-500.0,0.00023287,5]
[336591081,1724959879670,-2819.92,0.00023287,5]
[336591082,1724959879679,-7852.79,0.00023287,5]
[336591083,1724959879691,-1778.75,0.00023287,5]
[336591084,1724959879703,-5307.89,0.00023287,5]
[336591085,1724959879715,-563.92,0.00023287,5]
[336591086,1724959879725,-563.48,0.00023287,5]
[336591087,1724959879735,-4411.53,0.00023287,5]
[336591088,1724959879745,-810.09,0.00023287,5]
[336591089,1724959879756,-311.0,0.00023288,2]
[336591090,1724959879767,-258.0,0.00023288,2]
[336591091,1724959879779,-2500.0,0.00023289,2]
[336591092,1724959879792,-155.0,0.0002343,9]
[336591093,1724959879802,-500.0,0.00023561,5]
[336591094,1724959879811,-972.15,0.00023561,5]
[336591095,1724959879821,-416.59,0.00023561,5]
[336591096,1724959879831,-568.31,0.00023561,5]
[336591097,1724959879841,-500.0,0.00023561,5]
[336591098,1724959879850,-886.8,0.00023561,5]
[336591099,1724959879861,-500.0,0.00023561,5]
[336591100,1724959879871,-591.56,0.00023561,5]
[336591101,1724959879880,-500.0,0.00023561,5]
[336591102,1724959879890,-572.09,0.00023561,5]
[336591103,1724959879899,-507.64,0.00023561,5]
[336591104,1724959879908,-986.6,0.00023561,5]
[336591105,1724959879918,-668.17,0.00023561,5]
[336591106,1724959879939,-1355.56,0.00023561,5]
[336591107,1724959879955,-776.41,0.00023561,5]
[336591108,1724959879976,-500.0,0.00023561,5]
[336591109,1724959879996,-829.52,0.00023561,5]
[336591110,1724959880016,-579.36,0.00023561,5]
[336591111,1724959880032,-605.81,0.00023561,5]
[336591112,1724959880052,-836.77,0.00023561,5]
[336591113,1724959880068,-209.457876,0.00023561,7]
[336591114,1724959880086,-584.54,0.00023561,5]
[336591115,1724959880104,-152.754343,0.00023561,7]
[336591116,1724959880123,-500.7,0.00023561,5]
[336591117,1724959880135,-1704.24,0.00023561,5]
[336591118,1724959880153,-1674.51,0.00023561,5]
[336591119,1724959880169,-2011.91,0.00023561,5]
[336591120,1724959880184,-1578.86,0.00023561,5]
[336591121,1724959880200,-1943.11,0.00023561,5]
[336591122,1724959880215,-500.0,0.00023561,5]
[336591123,1724959880230,-3148.43,0.00023561,5]
[336591124,1724959880246,-1722.01,0.00023561,5]
[336591125,1724959880261,-2200.88,0.00023561,5]
[336591126,1724959880275,-10005.23,0.00023561,5]
[336591127,1724959880290,-1758.17,0.00023561,5]
[336591128,1724959880305,-500.0,0.00023561,5]
[336591129,1724959880319,-4039.87,0.00023561,5]
[336591130,1724959880333,-2874.84,0.00023561,5]
[336591131,1724959880348,-6955.28,0.00023561,5]
[336591132,1724959880362,-8645.87,0.00023561,5]
[336591133,1724959880377,-7860.36,0.00023561,5]
[336591134,1724959880391,-3052.09,0.00023561,5]
[336591135,1724959880407,-526.41,0.00023561,5]
[336591136,1724959880420,-1992.41,0.00023561,5]
[336591137,1724959880435,-1568.45,0.00023561,5]
[336591138,1724959880450,-2047.97,0.00023561,5]
[336591139,1724959880465,-1562.05,0.00023561,5]
[336591140,1724959880481,-500.0,0.00023561,5]
[336591141,1724959880494,-500.0,0.00023561,5]
[336591142,1724959880509,-2122.12,0.00023561,5]
[336591143,1724959880523,-864.74,0.00023561,5]
[336591144,1724959880540,-727.36,0.00023561,5]
[336591145,1724959880555,-500.0,0.00023561,5]
[336591146,1724959880570,-3582.04,0.00023561,5]
[336591147,1724959880584,-1462.75,0.00023561,5]
[336591148,1724959880599,-7676.07,0.00023561,5]
[336591149,1724959880614,-500.0,0.00023561,5]
[336591150,1724959880631,-535.44,0.00023561,5]
[336591151,1724959880647,-636.36,0.00023561,5]
[336591152,1724959880662,-1215.51,0.00023561,5]
[336591153,1724959880677,-500.0,0.00023561,5]
[336591154,1724959880691,-607.89947131,0.00023561,5]
[336591155,1724959880706,-1345.15,0.00023561,5]
[336591156,1724959880721,-2499.8,0.00023561,5]
[336591157,1724959880736,-1920.4,0.00023561,5]
[336591158,1724959880751,-2341.41,0.00023561,5]
[336591159,1724959880766,-2245.67,0.00023561,5]
[336591160,1724959880781,-3653.88,0.00023561,5]
[336591161,1724959880796,-1513.12,0.00023561,5]
[336591162,1724959880909,-7125.4,0.00023561,5]
[336591163,1724959880924,-687.9,0.00023561,5]
[336591164,1724959880935,-500.0,0.00023561,5]
[336591165,1724959880946,-2432.83,0.00023561,5]
[336591166,1724959880956,-1735.37,0.00023561,5]
[336591167,1724959880967,-330.06974897,0.00023561,5]
[336591168,1724959880976,-644.60131115,0.00023561,5]
[336591169,1724959880986,-1823.65,0.00023561,5]
[336591170,1724959880996,-1860.24,0.00023561,5]
[336591171,1724959881007,-1687.53,0.00023561,5]
[336591172,1724959881016,-640.19,0.00023561,5]
[336591173,1724959881026,-692.81,0.00023561,5]
[336591174,1724959881035,-7069.08,0.00023561,5]
[336591175,1724959881047,-500.0,0.00023561,5]
[336591176,1724959881057,-2819.92,0.00023561,5]
[336591177,1724959881066,-7852.79,0.00023561,5]
[336591178,1724959881076,-1778.75,0.00023561,5]
[336591179,1724959881086,-5307.89,0.00023561,5]
[336591180,1724959881095,-563.92,0.00023561,5]
[336591181,1724959881104,-563.48,0.00023561,5]
[336591182,1724959881114,-4411.53,0.00023561,5]
[336591183,1724959881123,-810.09,0.00023561,5]
[336591184,1724959881133,-2550.65,0.000237,14]
[336591185,1724959881142,-8513.52420285,0.000238,2]
[336591186,1724959881152,-644.09837377,0.00023835,5]
[336591187,1724959881161,-972.15,0.00023835,5]
[336591188,1724959881171,-568.31,0.00023835,5]
[336591189,1724959881180,-161.25,0.00023835,5]
[336591190,1724959881190,-886.8,0.00023835,5]
[336591191,1724959881205,-500.0,0.00023835,5]
[336591192,1724959881215,-591.56,0.00023835,5]
[336591193,1724959881226,-500.0,0.00023835,5]
[336591194,1724959881236,-572.09,0.00023835,5]
[336591195,1724959881246,-507.64,0.00023835,5]
[336591196,1724959881256,-986.6,0.00023835,5]
[336591197,1724959881266,-668.17,0.00023835,5]
[336591198,1724959881277,-1355.56,0.00023835,5]
[336591199,1724959881286,-776.41,0.00023835,5]
[336591200,1724959881304,-500.0,0.00023835,5]
[336591201,1724959881313,-829.52,0.00023835,5]
[336591202,1724959881323,-579.36,0.00023835,5]
[336591203,1724959881334,-605.81,0.00023835,5]
[336591204,1724959881344,-836.77,0.00023835,5]
[336591205,1724959881354,-584.54,0.00023835,5]
[336591206,1724959881363,-500.7,0.00023835,5]
[336591207,1724959881373,-231.491231,0.00023835,7]
[336591208,1724959881382,-231.491231,0.00023835,7]
[336591209,1724959881393,-151.0,0.00023835,7]
[336591210,1724959881403,-1704.24,0.00023835,5]
[336591211,1724959881413,-1674.51,0.00023835,5]
[336591212,1724959881423,-2011.91,0.00023835,5]
[336591213,1724959881432,-5672.749772,0.00023835,7]
[336591214,1724959881442,-1578.86,0.00023835,5]
[336591215,1724959881452,-5672.749774,0.00023835,7]
[336591216,1724959881462,-5094.968618,0.00023835,7]
[336591217,1724959881472,-5094.968613,0.00023835,7]
[336591218,1724959881482,-1943.11,0.00023835,5]
[336591219,1724959881492,-500.0,0.00023835,5]
[336591220,1724959881502,-3148.43,0.00023835,5]
[336591221,1724959881511,-5511.193121,0.00023835,7]
[336591222,1724959881520,-5511.19312293,0.00023835,7]
[336591223,1724959881530,-1722.01,0.00023835,5]
[336591224,1724959881543,-2200.88,0.00023835,5]
[336591225,1724959881554,-10005.23,0.00023835,5]
[336591226,1724959881565,-1758.17,0.00023835,5]
[336591227,1724959881576,-361.41,0.00023835,5]
[336591228,1724959881587,-4039.87,0.00023835,5]
[336591229,1724959881597,-2874.84,0.00023835,5]
[336591230,1724959881610,-6955.28,0.00023835,5]
[336591231,1724959881628,-8645.87,0.00023835,5]
[336591232,1724959881641,-7860.36,0.00023835,5]
[336591233,1724959881651,-273.471213,0.00023835,7]
[336591234,1724959881661,-3052.09,0.00023835,5]
[336591235,1724959881671,-526.41,0.00023835,5]
[336591236,1724959881682,-273.471212,0.00023835,7]
[336591237,1724959881691,-1992.41,0.00023835,5]
[336591238,1724959881700,-2516.329952,0.00023835,7]
[336591239,1724959881710,-1568.45,0.00023835,5]
[336591240,1724959881719,-2047.97,0.00023835,5]
[336591241,1724959881730,-2516.329957,0.00023835,7]
[336591242,1724959881740,-1562.05,0.00023835,5]
[336591243,1724959881750,-500.0,0.00023835,5]
[336591244,1724959881760,-500.0,0.00023835,5]
[336591245,1724959881770,-2122.12,0.00023835,5]
[336591246,1724959881779,-864.74,0.00023835,5]
[336591247,1724959881789,-727.36,0.00023835,5]
[336591248,1724959881808,-529.58,0.00023835,5]
[336591249,1724959881818,-3582.04,0.00023835,5]
[336591250,1724959881828,-1462.75,0.00023835,5]
[336591251,1724959881838,-151.0,0.00023835,7]
[336591252,1724959881848,-7676.07,0.00023835,5]
[336591253,1724959881858,-364.42,0.00023835,5]
[336591254,1724959881869,-535.44,0.00023835,5]
[336591255,1724959881884,-636.36,0.00023835,5]
[336591256,1724959881894,-1215.51,0.00023835,5]
[336591257,1724959881904,-500.0,0.00023835,5]
[336591258,1724959881914,-1345.15,0.00023835,5]
[336591259,1724959881924,-2499.8,0.00023835,5]
[336591260,1724959881935,-1920.4,0.00023835,5]
[336591261,1724959881945,-2341.41,0.00023835,5]
[336591262,1724959881955,-2245.67,0.00023835,5]
[336591263,1724959881965,-3653.88,0.00023835,5]
[336591264,1724959881976,-1513.12,0.00023835,5]
[336591265,1724959881986,-7125.4,0.00023835,5]
[336591266,1724959881996,-687.9,0.00023835,5]
[336591267,1724959882006,-500.0,0.00023835,5]
[336591268,1724959882016,-2432.83,0.00023835,5]
[336591269,1724959882027,-1735.37,0.00023835,5]